fUST/lending_fUST_20250812
["ID","MTS","AMOUNT","RATE_DAILY","PERIOD"]
[378721823,1754989992797,5234.2499247,0.00018435,2]
[378721824,1754990005379,927.05879991,0.0001852,2]
[378721825,1754990013322,3838.69127539,0.0001852,2]
[378721826,1754990013346,1161.30872461,0.0001852,2]
[378721827,1754990028805,5000.0,0.0001852,2]
[378721828,1754990046339,3838.69127539,0.0001852,2]
[378721829,1754990046361,1161.30872461,0.0001852,2]
[378721830,1754990062036,5000.0,0.0001852,2]
[378721831,1754990077235,3838.69127539,0.0001852,2]
[378721832,1754990077259,1161.30872461,0.0001852,2]
[378721833,1754990081282,179.89206476,0.00018448,2]
[378721834,1754990093680,5000.0,0.0001852,2]
[378721835,1754990109245,3658.79921063,0.0001852,2]
[378721836,1754990109271,1341.20078937,0.0001852,2]
[378721837,1754990124598,5000.0,0.0001852,2]
[378721838,1754990140607,3658.79921063,0.0001852,2]
[378721839,1754990140629,1341.20078937,0.0001852,2]
[378721840,1754990155421,8658.79921063,0.00018445,2]
[378721841,1754990155444,10000.0,0.00018445,2]
[378721842,1754990155466,10000.0,0.00018445,2]
[378721843,1754990155490,10000.0,0.00018445,2]
[378721844,1754990155513,10000.0,0.00018445,2]
[378721845,1754990155536,10000.0,0.00018445,2]
[378721846,1754990155558,10000.0,0.00018445,2]
[378721847,1754990155580,10000.0,0.00018445,2]
[378721848,1754990155602,10000.0,0.00018445,2]
[378721849,1754990155625,10000.0,0.00018445,2]
[378721850,1754990155648,10000.0,0.00018445,2]
[378721851,1754990155672,10000.0,0.00018445,2]
[378721852,1754990155696,10000.0,0.00018445,2]
[378721853,1754990155719,10000.0,0.00018445,2]
[378721854,1754990155742,10000.0,0.00018445,2]
[378721855,1754990155767,10000.0,0.00018445,2]
[378721856,1754990155793,10000.0,0.00018445,2]
[378721857,1754990155816,10000.0,0.00018445,2]
[378721858,1754990155840,10000.0,0.00018445,2]
[378721859,1754990155866,10000.0,0.00018445,2]
[378721860,1754990155891,10000.0,0.00018445,2]
[378721861,1754990155914,10000.0,0.00018445,2]
[378721862,1754990155938,10000.0,0.00018445,2]
[378721863,1754990155962,10000.0,0.00018445,2]
[378721864,1754990155985,10000.0,0.00018445,2]
[378721865,1754990156008,10000.0,0.00018445,2]
[378721866,1754990156031,10000.0,0.00018445,2]
[378721867,1754990156054,10000.0,0.00018445,2]
[378721868,1754990156076,10000.0,0.00018445,2]
[378721869,1754990156098,10000.0,0.00018445,2]
[378721870,1754990156121,10000.0,0.00018445,2]
[378721871,1754990156145,10000.0,0.00018445,2]
[378721872,1754990156167,10000.0,0.00018445,2]
[378721873,1754990156189,10000.0,0.00018445,2]
[378721874,1754990156211,10000.0,0.00018445,2]
[378721875,1754990156233,10000.0,0.00018445,2]
[378721876,1754990156256,10000.0,0.00018445,2]
[378721877,1754990156279,1341.20078937,0.00018445,2]
[378721878,1754990156337,5000.0,0.0001852,2]
[378721879,1754990167119,214.83611347,0.00018431,2]
[378721880,1754990167769,214.83611347,0.00018433,2]
[378721881,1754990172461,3229.12698369,0.0001852,2]
[378721882,1754990172483,1770.87301631,0.0001852,2]
[378721883,1754990189674,5000.0,0.0001852,2]
[378721884,1754990201662,168.0,0.0001846,2]
[378721885,1754990206439,3061.12698369,0.0001852,2]
[378721886,1754990206461,1938.87301631,0.0001852,2]
[378721887,1754990210288,8061.12698369,0.00018431,2]
[378721888,1754990210531,10000.0,0.00018431,2]
[378721889,1754990210553,2459.22321768,0.00018431,2]
[378721890,1754990223178,5000.0,0.0001852,2]
[378721891,1754990227382,2437.613435,0.00017535,2]
[378721892,1754990238555,103.16334732,0.0001852,2]
[378721893,1754990238584,4896.83665268,0.0001852,2]
[378721894,1754990255290,5000.0,0.0001852,2]
[378721895,1754990268106,103.16334732,0.00018431,2]
[378721896,1754990268128,252.64083414,0.00018431,2]
[378721897,1754990268534,355.80418143,0.00018431,2]
[378721898,1754990269032,355.80418143,0.00018432,2]
[378721899,1754990269455,355.80418143,0.00018432,2]
[378721900,1754990269966,355.80418143,0.00018432,2]
[378721901,1754990271621,5000.0,0.0001852,2]
[378721902,1754990286619,203.14872321,0.00018432,2]
[378721903,1754990287370,3120.99371693,0.0001852,2]
[378721904,1754990287393,1879.00628307,0.0001852,2]
[378721905,1754990303287,5000.0,0.0001852,2]
[378721906,1754990319088,3120.99371693,0.00018445,2]
[378721907,1754990319111,10000.0,0.00018445,2]
[378721908,1754990319134,10000.0,0.00018445,2]
[378721909,1754990319155,10000.0,0.00018445,2]
[378721910,1754990319177,10000.0,0.00018445,2]
[378721911,1754990321084,-254.03389711,0.00018445,2]
[378721912,1754990321525,10000.0,0.00017532,2]
[378721913,1754990324649,-300.0,0.00018445,2]
[378721914,1754990327515,-167.36677087,0.00018445,2]
[378721915,1754990329162,-244.71229766,0.00018445,2]
[378721916,1754990337644,-301.77446362,0.00018445,2]
[378721917,1754990342850,-261.63178041,0.00018445,2]
[378721918,1754990344233,1888.2098797,0.0001842,2]
[378721919,1754990345165,-166.59502041,0.00018445,2]
[378721920,1754990348244,301.78,0.00018435,3]
[378721921,1754990350428,-162.50916648,0.00018445,2]
[378721922,1754990353857,-158.02347389,0.00018445,2]
[378721923,1754990358022,-394.15293683,0.00018445,2]
[378721924,1754990358851,301.78,0.00018435,3]
[378721925,1754990360093,-283.00929734,0.00018445,2]
[378721926,1754990367093,-154.90224994,0.00018445,2]
[378721927,1754990369374,-311.4270703,0.00018445,2]
[378721928,1754990370925,-166.9356753,0.00018445,2]
[378721929,1754990372263,1197.88416961,0.0001842,2]
[378721930,1754990373716,-234.07192821,0.00018445,2]
[378721931,1754990375576,-334.60769642,0.00018445,2]
[378721932,1754990380200,-176.94732526,0.00018445,2]
[378721933,1754990382511,-345.09775006,0.00018445,2]
[378721934,1754990384146,-235.324473,0.00018445,2]
[378721935,1754990386428,-167.74362123,0.00018445,2]
[378721936,1754990390017,-278.86136868,0.00018445,2]
[378721937,1754990396176,-354.98540819,0.00018445,2]
[378721938,1754990398988,-205.49223635,0.00018445,2]
[378721939,1754990401168,-292.69115805,0.00018445,2]
[378721940,1754990402305,1200.0,0.00018444,2]
[378721941,1754990402917,300.0,0.00018444,2]
[378721942,1754990403646,300.0,0.00018444,2]
[378721943,1754990404609,-171.64079428,0.00018445,2]
[378721944,1754990406825,-160.0,0.00018445,2]
[378721945,1754990409775,-381.19313087,0.00018445,2]
[378721946,1754990410290,15565.63055805,0.0001842,2]
[378721947,1754990412782,-156.49865956,0.00018445,2]
[378721948,1754990415026,28344.6436686,0.00017535,2]
[378721949,1754990417429,-167.64766389,0.00018445,2]
[378721950,1754990422103,-255.57894804,0.0001842,2]
[378721951,1754990424319,-225.10709207,0.0001842,2]
[378721952,1754990429614,-311.34412975,0.0001842,2]
[378721953,1754990431578,-166.42584238,0.0001842,2]
[378721954,1754990437271,-241.34877261,0.0001842,2]
[378721955,1754990439461,-197.7186863,0.0001842,2]
[378721956,1754990441721,-287.3297992,0.0001842,2]
[378721957,1754990444923,-185.89171525,0.0001842,2]
[378721958,1754990447529,-176.16745337,0.0001842,2]
[378721959,1754990450558,-276.31232771,0.0001842,2]
[378721960,1754990456908,-264.24533842,0.0001842,2]
[378721961,1754990461274,-296.70920461,0.0001842,2]
[378721962,1754990464725,-61.82941718,0.0001842,2]
[378721963,1754990464748,-91.14644211,0.00018435,3]
[378721964,1754990466814,-166.59502041,0.00018435,3]
[378721965,1754990470639,-423.92528387,0.00018435,3]
[378721966,1754990472860,-259.22747021,0.00018435,3]
[378721967,1754990476209,-177.11,0.00018435,3]
[378721968,1754990478368,-14.2957834,0.00018435,3]
[378721969,1754990478391,-296.14687139,0.00018435,3]
[378721970,1754990480586,-183.37805234,0.00018435,3]
[378721971,1754990482872,-86.62507627,0.00018435,3]
[378721972,1754990482897,-135.08187408,0.00018435,3]
[378721973,1754990485334,-147.99812592,0.00018435,3]
[378721974,1754990485358,-54.98440387,0.00018435,3]
[378721975,1754990487976,-210.05091443,0.00018435,3]
[378721976,1754990490622,-390.63486432,0.00018435,3]
[378721977,1754990494818,-193.56981738,0.00018435,3]
[378721978,1754990494846,-133.90805871,0.00018443,2]
[378721979,1754990497030,-159.91989951,0.00018443,2]
[378721980,1754990498629,-6.17204178,0.00018443,2]
[378721981,1754990498650,-256.62505515,0.00018444,2]
[378721982,1754990501370,-219.03975401,0.00018444,2]
[378721983,1754990503537,-279.55632831,0.00018444,2]
[378721984,1754990509198,5000.0,0.000181,2]
[378721985,1754990510209,-209.58761311,0.00018444,2]
[378721986,1754990510964,252.144318,0.00017891,2]
[378721987,1754990511429,895.15090251,0.00017892,2]
[378721988,1754990514328,-292.90783242,0.00018444,2]
[378721989,1754990517229,-561.97383275,0.00018444,2]
[378721990,1754990518952,-159.30022003,0.00018444,2]
[378721991,1754990521041,-296.95424603,0.00018444,2]
[378721992,1754990525189,-267.97210634,0.00018443,2]
[378721993,1754990525390,5000.0,0.000181,2]
[378721994,1754990527876,-32.02789366,0.00018443,2]
[378721995,1754990527900,-361.9362994,0.00018444,2]
[378721996,1754990530477,7087.9115971,0.00017507,2]
[378721997,1754990534174,-195.96891215,0.00018444,2]
[378721998,1754990534512,492.996762,0.00013699,2]
[378721999,1754990536513,-327.36808057,0.00018444,2]
[378722000,1754990538686,-398.00178041,0.00018444,2]
[378722001,1754990540435,-428.58558453,0.00018444,2]
[378722002,1754990541404,5000.0,0.000181,2]
[378722003,1754990542625,-456.71956109,0.00018444,2]
[378722004,1754990544740,-266.01876366,0.00018444,2]
[378722005,1754990550121,-207.97195788,0.00018444,2]
[378722006,1754990554801,-155.05087573,0.00018443,2]
[378722007,1754990556481,-344.94912427,0.00018443,2]
[378722008,1754990556503,-166.23342919,0.00018443,2]
[378722009,1754990557067,5000.0,0.000181,2]
[378722010,1754990563437,-196.29442186,0.00018443,2]
[378722011,1754990566822,-36.86796461,0.00018443,2]
[378722012,1754990566846,-134.86358455,0.00018443,2]
[378722013,1754990568530,-270.92086263,0.00018443,2]
[378722014,1754990570500,-94.21555282,0.00018443,2]
[378722015,1754990570523,-178.53624052,0.00018443,2]
[378722016,1754990573938,-321.46375948,0.00018443,2]
[378722017,1754990573960,-94.37460384,0.00018443,2]
[378722018,1754990574565,5000.0,0.000181,2]
[378722019,1754990576220,-233.0647751,0.00018443,2]
[378722020,1754990577963,-175.12,0.00018435,3]
[378722021,1754990577988,-34.2280552,0.00018443,2]
[378722022,1754990581420,-138.33256586,0.00018443,2]
[378722023,1754990581445,-65.61409331,0.00018443,2]
[378722024,1754990583127,-164.90202035,0.00018442,2]
[378722025,1754990585634,-135.09797965,0.00018442,2]
[378722026,1754990585660,-21.24464026,0.00018443,2]
[378722027,1754990591001,-185.34734896,0.00018443,2]
[378722028,1754990591024,-30.50800546,0.00018443,2]
[378722029,1754990591235,5000.0,0.000181,2]
[378722030,1754990593310,-160.0,0.00018443,2]
[378722031,1754990598176,-224.62500086,0.00018443,2]
[378722032,1754990600522,-84.86699368,0.00018443,2]
[378722033,1754990600546,-72.70617491,0.00018443,2]
[378722034,1754990605059,-266.96400755,0.00018443,2]
[378722035,1754990607441,5000.0,0.000181,2]
[378722036,1754990609038,-160.32981754,0.00018443,2]
[378722037,1754990609061,-106.84267357,0.00018443,2]
[378722038,1754990613090,-241.98082196,0.00018443,2]
[378722039,1754990615520,-151.17650447,0.00018443,2]
[378722040,1754990615543,-189.81037397,0.00018443,2]
[378722041,1754990620783,-160.37135132,0.00018443,2]
[378722042,1754990622770,5000.0,0.000181,2]
[378722043,1754990622986,-149.81827471,0.00018443,2]
[378722044,1754990623009,-154.43800546,0.00018443,2]
[378722045,1754990625224,-153.0,0.00018443,2]
[378722046,1754990628983,-186.93,0.00018435,3]
[378722047,1754990629007,-117.64550045,0.00018443,2]
[378722048,1754990632253,-57.79549561,0.00018443,2]
[378722049,1754990632275,-160.17333214,0.00018443,2]
[378722050,1754990639438,5000.0,0.000181,2]
[378722051,1754990656776,5000.0,0.000181,2]
[378722052,1754990671651,6237.94886891,0.00017443,2]
[378722053,1754990671676,18662.05113109,0.00017443,2]
[378722054,1754990673762,-245.34930878,0.000181,2]
[378722055,1754990677742,-201.13310184,0.000181,2]
[378722056,1754990680082,-274.25291041,0.000181,2]
[378722057,1754990682100,-217.50144414,0.000181,2]
[378722058,1754990684466,-161.83628158,0.000181,2]
[378722059,1754990686648,-165.52241516,0.000181,2]
[378722060,1754990688494,-641.26889547,0.000181,2]
[378722061,1754990697698,-213.36729822,0.000181,2]
[378722062,1754990700760,-198.6212951,0.000181,2]
[378722063,1754990702326,-227.33216717,0.000181,2]
[378722064,1754990712393,-171.54446583,0.000181,2]
[378722065,1754990714375,-294.2860022,0.000181,2]
[378722066,1754990717882,-240.48863818,0.000181,2]
[378722067,1754990722488,-271.67294127,0.000181,2]
[378722068,1754990724132,-161.10308367,0.000181,2]
[378722069,1754990726501,-315.27820173,0.000181,2]
[378722070,1754990729195,-166.62762435,0.000181,2]
[378722071,1754990731285,-285.40050124,0.000181,2]
[378722072,1754990733331,-287.68367419,0.000181,2]
[378722073,1754990735825,-259.72974947,0.000181,2]
[378722074,1754990735848,-43.87944188,0.00018343,2]
[378722075,1754990738450,-215.28387796,0.00018343,2]
[378722076,1754990749657,1337.94886891,0.00018,2]
[378722077,1754990749677,3662.05113109,0.00018,2]
[378722078,1754990759393,18656.2416333,0.00017675,2]
[378722079,1754990765124,5000.0,0.00018,2]
[378722080,1754990780517,5000.0,0.00018,2]
[378722081,1754990787487,1744.3245137,0.00017442,2]
[378722082,1754990797151,5000.0,0.00018,2]
[378722084,1754990813363,5000.0,0.00018,2]
[378722085,1754990829516,5000.0,0.00018,2]
[378722086,1754990834787,208.4810105,0.00017441,2]
[378722087,1754990845476,5000.0,0.00018,2]
[378722088,1754990861818,5000.0,0.00018,2]
[378722089,1754990867207,212.5326426,0.00017441,2]
[378722090,1754990870503,200.2654932,0.00017441,2]
[378722091,1754990872638,45432.68331583,0.00018,2]
[378722092,1754990876779,4551.38731453,0.00018,2]
[378722093,1754990877784,5000.0,0.00018,2]
[378722094,1754990893464,5000.0,0.00018,2]
[378722095,1754990899712,-1091.97724474,0.00018243,2]
[378722096,1754990909619,5000.0,0.0001825,2]
[378722097,1754990917076,2816.04551052,0.00017,2]
[378722098,1754990917102,10000.0,0.00017,2]
[378722099,1754990917124,10000.0,0.00017,2]
[378722100,1754990917146,10000.0,0.00017,2]
[378722101,1754990917168,3335.42366588,0.00017,2]
[378722102,1754990919804,6664.57633412,0.00018,2]
[378722103,1754990919826,10000.0,0.00018,2]
[378722104,1754990919848,8445.38107149,0.00018,2]
[378722105,1754990921221,372.37422731,0.000149,2]
[378722106,1754990921513,1000.0,0.0001,2]
[378722107,1754990925013,182.2447012,0.0001825,2]
[378722108,1754990925036,4817.7552988,0.0001825,2]
[378722109,1754990925662,211.35318605,0.00016,2]
[378722111,1754990927009,4970.89151515,0.0001,2]
[378722112,1754990927031,10000.0,0.0001,2]
[378722113,1754990927052,2486.58620535,0.0001,2]
[378722114,1754990928628,7513.41379465,0.00017,2]
[378722115,1754990928651,3524.75947976,0.00017,2]
[378722116,1754990929579,277.138039,0.00017581,2]
[378722117,1754990940716,5000.0,0.0001825,2]
[378722125,1754990957013,1198.10248124,0.0001825,2]
[378722126,1754990957037,3801.89751876,0.0001825,2]
[378722127,1754990961490,2881.6671376,0.00017535,2]
[378722128,1754990974352,3316.43534364,0.0001825,2]
[378722129,1754990974373,1683.56465636,0.0001825,2]
[378722130,1754990989938,168.87316342,0.00018129,2]
[378722131,1754990990968,5000.0,0.0001825,2]
[378722132,1754990992392,166.62762435,0.00018243,2]
[378722133,1754991007105,2980.93455587,0.0001825,2]
[378722134,1754991007354,2019.06544413,0.0001825,2]
[378722135,1754991023015,5000.0,0.0001825,2]
[378722156,1754991032724,-491.23799703,0.00018342,2]
[378722157,1754991032735,-601.29421125,0.00018342,2]
[378722160,1754991032774,-1849.10857217,0.00018342,2]
[378722161,1754991032783,-85.20574035,0.00018343,2]
[378722163,1754991032792,-1763.60241693,0.00018345,2]
[378722165,1754991032801,-394.03738132,0.0001841,2]
[378722166,1754991032810,-500.0,0.00018433,2]
[378722168,1754991032819,-405.43579067,0.00018433,2]
[378722169,1754991032841,-94.56420933,0.00018433,2]
[378722170,1754991032850,-500.0,0.00018433,2]
[378722171,1754991032860,-254.13190123,0.00018433,2]
[378722172,1754991032869,-500.0,0.00018433,2]
[378722173,1754991032879,-500.0,0.00018433,2]
[378722174,1754991032888,-500.0,0.00018433,2]
[378722175,1754991032897,-500.0,0.00018433,2]
[378722176,1754991032906,-422.45305064,0.00018433,2]
[378722177,1754991032918,-77.54694936,0.00018433,2]
[378722178,1754991032927,-187.7707579,0.00018433,2]
[378722179,1754991032938,-312.2292421,0.00018433,2]
[378722180,1754991032947,-151.0,0.00018434,2]
[378722181,1754991032957,-151.0,0.00018434,2]
[378722182,1754991032966,-85.6267579,0.00018434,2]
[378722183,1754991032978,-65.3732421,0.00018434,2]
[378722184,1754991032988,-151.0,0.00018434,2]
[378722185,1754991032997,-151.0,0.00018434,2]
[378722186,1754991033006,-151.0,0.00018434,2]
[378722187,1754991033015,-59.75919572,0.00018434,2]
[378722197,1754991038374,-500.0,0.00018433,2]
[378722198,1754991038383,-91.24080428,0.00018434,2]
[378722199,1754991038393,-151.0,0.00018434,2]
[378722200,1754991038402,-151.0,0.00018434,2]
[378722201,1754991038411,-151.0,0.00018434,2]
[378722202,1754991038420,-151.0,0.00018434,2]
[378722203,1754991038429,-151.0,0.00018434,2]
[378722204,1754991038438,-2953.58542572,0.00018434,2]
[378722205,1754991038453,-7314.07178782,0.00018434,2]
[378722206,1754991038462,-151.0,0.00018434,2]
[378722207,1754991038471,-151.0,0.00018434,2]
[378722208,1754991038480,-151.0,0.00018434,2]
[378722209,1754991038490,-151.0,0.00018434,2]
[378722210,1754991038499,-151.0,0.00018434,2]
[378722211,1754991038508,-151.0,0.00018434,2]
[378722212,1754991038517,-50000.0,0.00018434,2]
[378722213,1754991038526,-1200.0,0.0001844,2]
[378722214,1754991038535,-300.0,0.0001844,2]
[378722215,1754991038544,-300.0,0.0001844,2]
[378722216,1754991038553,-1177.0,0.00018441,2]
[378722217,1754991038562,-160.0,0.00018442,2]
[378722218,1754991038571,-183.06087467,0.00018442,2]
[378722219,1754991038581,-500.0,0.00018442,2]
[378722220,1754991038590,-460.0,0.00018442,2]
[378722221,1754991038600,-460.0,0.00018442,2]
[378722222,1754991038609,-460.0,0.00018442,2]
[378722223,1754991038618,-463.57617657,0.00018442,2]
[378722224,1754991038627,-430.54671934,0.00018442,2]
[378722225,1754991038636,-460.0,0.00018442,2]
[378722226,1754991038646,-2038.88,0.00018443,2]
[378722227,1754991038655,-465.3411609,0.00018443,2]
[378722228,1754991038664,-2504.93,0.00018443,2]
[378722229,1754991038847,-460.0,0.00018443,2]
[378722230,1754991038858,-577.62,0.00018443,2]
[378722231,1754991038867,-460.0,0.00018443,2]
[378722232,1754991038877,-2847.45,0.00018443,2]
[378722233,1754991038885,-476.6,0.00018443,2]
[378722234,1754991038894,-469.83556759,0.00018443,2]
[378722235,1754991038903,-709.38,0.00018443,2]
[378722236,1754991038913,-1600.99,0.00018443,2]
[378722237,1754991038922,-460.0,0.00018443,2]
[378722238,1754991038931,-467.56894109,0.00018443,2]
[378722239,1754991038940,-460.0,0.00018443,2]
[378722240,1754991038950,-461.00436842,0.00018443,2]
[378722241,1754991038959,-938.74,0.00018443,2]
[378722242,1754991038969,-157.85514036,0.00018443,2]
[378722243,1754991038978,-460.0,0.00018443,2]
[378722244,1754991038988,-462.48415978,0.00018443,2]
[378722245,1754991038998,-460.0,0.00018443,2]
[378722246,1754991039008,-636.14,0.00018443,2]
[378722247,1754991039018,-920.34,0.00018443,2]
[378722248,1754991039027,-460.0,0.00018443,2]
[378722249,1754991039037,-460.0,0.00018443,2]
[378722250,1754991039046,-461.85772454,0.00018443,2]
[378722251,1754991039056,-597.04,0.00018443,2]
[378722252,1754991039065,-658.92,0.00018443,2]
[378722253,1754991039075,-460.0,0.00018443,2]
[378722254,1754991039086,-460.0,0.00018443,2]
[378722255,1754991039095,-482.9590171,0.00018443,2]
[378722256,1754991039104,-460.0,0.00018443,2]
[378722257,1754991039113,-460.0,0.00018443,2]
[378722258,1754991039123,-460.0,0.00018443,2]
[378722259,1754991039133,-808.0,0.00018443,2]
[378722260,1754991039144,-1714.91,0.00018443,2]
[378722261,1754991039153,-919.35,0.00018443,2]
[378722262,1754991039162,-500.0,0.00018443,2]
[378722263,1754991039171,-500.0,0.00018443,2]
[378722264,1754991039181,-1201.48,0.00018443,2]
[378722265,1754991039190,-570.3,0.00018443,2]
[378722266,1754991039200,-463.59074277,0.00018443,2]
[378722267,1754991039209,-460.0,0.00018443,2]
[378722268,1754991039221,-460.0,0.00018443,2]
[378722269,1754991039231,-460.0,0.00018443,2]
[378722270,1754991039239,-3031.66,0.00018443,2]
[378722271,1754991039249,-460.0,0.00018443,2]
[378722272,1754991039258,-460.0,0.00018443,2]
[378722273,1754991039267,-673.01,0.00018443,2]
[378722274,1754991039277,-580.87,0.00018443,2]
[378722275,1754991039286,-460.0,0.00018443,2]
[378722276,1754991039296,-635.1,0.00018443,2]
[378722277,1754991039305,-460.0,0.00018443,2]
[378722278,1754991039314,-460.0,0.00018443,2]
[378722279,1754991039324,-460.0,0.00018443,2]
[378722280,1754991039333,-501.0,0.00018444,2]
[378722281,1754991039342,-501.0,0.00018444,2]
[378722282,1754991039351,-501.0,0.00018444,2]
[378722283,1754991039360,-501.0,0.00018444,2]
[378722284,1754991039369,-501.0,0.00018444,2]
[378722285,1754991039379,-501.0,0.00018444,2]
[378722286,1754991039387,-501.0,0.00018444,2]
[378722287,1754991039397,-501.0,0.00018444,2]
[378722288,1754991039406,-501.0,0.00018444,2]
[378722289,1754991039415,-501.0,0.00018444,2]
[378722290,1754991039424,-501.0,0.00018444,2]
[378722291,1754991039434,-501.0,0.00018444,2]
[378722292,1754991039443,-501.0,0.00018444,2]
[378722293,1754991039452,-501.0,0.00018444,2]
[378722294,1754991039461,-501.0,0.00018444,2]
[378722295,1754991039471,-501.0,0.00018444,2]
[378722296,1754991039480,-501.0,0.00018444,2]
[378722297,1754991039490,-501.0,0.00018444,2]
[378722298,1754991039499,-501.0,0.00018444,2]
[378722299,1754991039508,-501.0,0.00018444,2]
[378722300,1754991039517,-501.0,0.00018444,2]
[378722301,1754991039526,-501.0,0.00018444,2]
[378722302,1754991039534,-501.0,0.00018444,2]
[378722303,1754991039544,-309.55581794,0.00018444,2]
[378722304,1754991039553,-500.0,0.00018444,2]
[378722305,1754991039562,-500.0,0.00018444,2]
[378722306,1754991039571,-500.0,0.00018444,2]
[378722307,1754991039580,-500.0,0.00018444,2]
[378722308,1754991039589,-596.61,0.00018444,2]
[378722309,1754991039598,-319889.12896886,0.00018445,2]
[378722310,1754991039607,-500.0,0.00018445,2]
[378722311,1754991039617,-2000.0,0.00018445,2]
[378722312,1754991039626,-1061.031,0.00018445,2]
[378722313,1754991039635,-179.89206476,0.00018448,2]
[378722314,1754991039644,-462.66480846,0.00018533,2]
[378722315,1754991039654,-460.0,0.00018533,2]
[378722316,1754991039663,-468.13695215,0.00018533,2]
[378722317,1754991039672,-466.3400673,0.00018533,2]
[378722318,1754991039681,-460.0,0.00018533,2]
[378722319,1754991039690,-460.0,0.00018533,2]
[378722320,1754991039699,-463.20720672,0.00018533,2]
[378722321,1754991039708,-465.90755017,0.00018533,2]
[378722322,1754991039717,-400.33738819,0.00018533,2]
[378722323,1754991039727,-460.0,0.00018533,2]
[378722324,1754991039736,-463.29028569,0.00018533,2]
[378722325,1754991039745,-460.0,0.00018533,2]
[378722326,1754991039755,-460.0,0.00018533,2]
[378722327,1754991039764,-467.08126592,0.00018533,2]
[378722328,1754991039773,-460.0,0.00018533,2]
[378722329,1754991039783,-460.0,0.00018533,2]
[378722330,1754991039792,-467.49645354,0.00018533,2]
[378722331,1754991039802,-460.0,0.00018533,2]
[378722332,1754991039811,-460.0,0.00018533,2]
[378722333,1754991039819,-460.0,0.00018533,2]
[378722334,1754991039830,-460.0,0.00018533,2]
[378722335,1754991039839,-460.0,0.00018533,2]
[378722336,1754991039848,-462.44626596,0.00018533,2]
[378722337,1754991039857,-463.40283823,0.00018533,2]
[378722338,1754991039867,-462.85727267,0.00018533,2]
[378722339,1754991039876,-469.56892824,0.00018533,2]
[378722340,1754991039885,-460.0,0.00018533,2]
[378722341,1754991039894,-460.0,0.00018533,2]
[378722342,1754991039903,-462.37632927,0.00018533,2]
[378722343,1754991039913,-927.22,0.00018533,2]
[378722344,1754991039923,-460.0,0.00018533,2]
[378722345,1754991039932,-460.0,0.00018533,2]
[378722346,1754991039941,-460.0,0.00018533,2]
[378722347,1754991039950,-460.0,0.00018533,2]
[378722348,1754991039960,-460.0,0.00018533,2]
[378722349,1754991039969,-460.0,0.00018533,2]
[378722350,1754991039978,-460.0,0.00018533,2]
[378722351,1754991039988,-460.0,0.00018533,2]
[378722352,1754991039998,-463.99785482,0.00018533,2]
[378722353,1754991040009,-460.0,0.00018533,2]
[378722354,1754991040020,-481.59,0.00018533,2]
[378722355,1754991040029,-460.0,0.00018533,2]
[378722356,1754991040039,-460.0,0.00018533,2]
[378722357,1754991040048,-460.0,0.00018533,2]
[378722358,1754991040057,-460.0,0.00018533,2]
[378722359,1754991040067,-460.0,0.00018533,2]
[378722361,1754991040076,-460.0,0.00018533,2]
[378722363,1754991040086,-460.0,0.00018533,2]
[378722364,1754991040095,-460.0,0.00018533,2]
[378722365,1754991040104,-460.0,0.00018533,2]
[378722366,1754991040114,-1000.0,0.00018533,2]
[378722367,1754991040124,-460.0,0.00018533,2]